[Event "94th Tradewise Hastings Congress"]
[Site "Hastings"]
[Date "2018.12.29"]
[Round "2"]
[White "Heinsohn, Michael"]
[Black "Royset, Pal"]
[Result "0-1"]
[ECO "E02"]
[WhiteElo "1961"]
[BlackElo "2182"]
[Annotator "NA"]
[PlyCount "96"]
[EventDate "2018.12.28"]
[EventType "swiss"]
[EventCountry "ENG"]
[SourceTitle "playchess.com"]
[Source "ChessBase"]
[SourceQuality "1"]
[TimeControl "40/6000+30:3000+30"]

1. d4 {[%emt 0:00:00]} Nf6 {[%emt 0:00:00]} 2. c4 {[%emt 0:00:00]} e6 {[%emt 0:01:11]} 3. g3 {[%emt 0:00:00]} d5 {[%emt 0:00:12]} 4. Nf3 {[%emt 0:00:00]} dxc4 {[%emt 0:00:56]} 5. Qa4+ {[%emt 0:02:35]} Bd7 {[%emt 0:04:03]} 6. Qxc4 {[%emt 0:00:10]} Bc6 {[%emt 0:03:35]} 7. Bg2 {[%emt 0:00:14]} Be7 {[%emt 0:05:02]} 8. O-O {[%emt 0:00:13]} O-O {[%emt 0:02:22]} 9. Nc3 {[%emt 0:04:38]} a6 {[%emt 0:06:39]} 10. Qb3 {[%emt 0:04:30]} b5 {[%emt 0:01:43]} 11. a3 {[%emt 0:11:15]} Nbd7 {[%emt 0:05:53]} 12. Rd1 {[%emt 0:03:16]} Qc8 {[%emt 0:04:26]} 13. Ne5 {[%emt 0:21:54]} Bxg2 {[%emt 0:01:37]} 14. Kxg2 {[%emt 0:01:02]} c5 {[%emt 0:03:14]} 15. Nxd7 {[%emt 0:01:08]} Qxd7 {[%emt 0:00:29]} 16. dxc5 {[%emt 0:05:00]} Qc6+ {[%emt 0:00:58]} 17. f3 {[%emt 0:06:32]} Qxc5 {[%emt 0:05:42]} 18. e4 {[%emt 0:05:20]} Rfd8 {[%emt 0:05:21]} 19. Bf4 {[%emt 0:02:39]} g5 {[%emt 0:02:46]} 20. Bd2 {[%emt 0:11:38]} g4 {[%emt 0:00:29]} 21. f4 {[%emt 0:03:52]} Rd3 {[%emt 0:07:16]} 22. Be1 {[%emt 0:03:38]} Rf3 {[%emt 0:04:07]} 23. Qc2 {[%emt 0:02:31]} Rc8 {[%emt 0:13:17]} 24. h4 {[%emt 0:01:39]} Qc4 {[%emt 0:05:47]} 25. Bf2 {[%emt 0:00:53]} Qc6 {[%emt 0:05:40]} 26. Qe2 {[%emt 0:03:40]} a5 {[%emt 0:02:39]} 27. Rac1 {[%emt 0:03:01]} Qb7 {[%emt 0:04:11]} 28. Qxb5 {[%emt 0:04:48]} Qxb5 {[%emt 0:01:33]} 29. Nxb5 {[%emt 0:00:05]} Rxc1 {[%emt 0:00:41]} 30. Rxc1 {[%emt 0:00:06]} Nxe4 {[%emt 0:00:13]} 31. Be1 {[%emt 0:03:11]} Rb3 {[%emt 0:01:47]} 32. Rc8+ {[%emt 0:00:24]} Kg7 {[%emt 0:00:27]} 33. Nc3 {[%emt 0:02:27]} Rxb2+ {[%emt 0:00:16]} 34. Kf1 {[%emt 0:00:07]} Rc2 {[%emt 0:02:03]} 35. Rc4 {[%emt 0:02:05]} Nd6 {[%emt 0:06:21]} 36. Rc7 {[%emt 0:01:01]} Nf5 {[%emt 0:00:13]} 37. Nb5 {[%emt 0:01:21]} Rxc7 {[%emt 0:00:58]} 38. Nxc7 {[%emt 0:00:06]} Bxa3 {[%emt 0:00:16]} 39. Bxa5 {[%emt 0:00:30]} Nxg3+ {[%emt 0:00:26]} 40. Kg2 {[%emt 0:01:42]} Nf5 {[%emt 0:01:30]} 41. Ne8+ {[%emt 0:03:32]} Kg6 {[%emt 0:00:33]} 42. h5+ {[%emt 0:04:29]} Kxh5 {[%emt 0:00:58]} 43. Nf6+ {[%emt 0:00:05]} Kg6 {[%emt 0:00:17]} 44. Nxg4 {[%emt 0:00:08]} Bd6 {[%emt 0:03:21]} 45. Kf3 {[%emt 0:03:24]} Nd4+ {[%emt 0:01:49]} 46. Ke3 {[%emt 0:00:05]} Nc6 {[%emt 0:02:01]} 47. Bc3 {[%emt 0:03:14]} Ne7 {[%emt 0:03:04]} 48. Kf3 {[%emt 0:00:24]} Bxf4 {[%emt 0:01:18]} 0-1

[Event "94th Tradewise Hastings Congress"]
[Site "Hastings"]
[Date "2018.12.29"]
[Round "2"]
[White "Byrn, Carsten"]
[Black "Sumit, Kumar"]
[Result "0-1"]
[ECO "A20"]
[WhiteElo "1959"]
[BlackElo "2179"]
[Annotator "NA"]
[PlyCount "102"]
[EventDate "2018.12.28"]
[EventType "swiss"]
[EventCountry "ENG"]
[SourceTitle "playchess.com"]
[Source "ChessBase"]
[SourceQuality "1"]
[TimeControl "40/6000+30:3000+30"]

1. c4 {[%emt 0:00:00]} e5 {[%emt 0:15:51]} 2. g3 {[%emt 0:00:00]} Nf6 {[%emt 0:00:10]} 3. Bg2 {[%emt 0:00:00]} h6 {[%emt 0:00:05]} 4. Nc3 {[%emt 0:00:11]} Bb4 {[%emt 0:00:05]} 5. Nd5 {[%emt 0:00:38]} Nxd5 {[%emt 0:01:48]} 6. cxd5 {[%emt 0:00:11]} O-O {[%emt 0:00:09]} 7. a3 {[%emt 0:05:25]} Be7 {[%emt 0:00:50]} 8. e3 {[%emt 0:03:07]} c6 {[%emt 0:01:13]} 9. Ne2 {[%emt 0:02:02]} d6 {[%emt 0:06:39]} 10. O-O {[%emt 0:03:15]} c5 {[%emt 0:10:48]} 11. d4 {[%emt 0:00:29]} exd4 {[%emt 0:00:37]} 12. exd4 {[%emt 0:00:23]} b6 {[%emt 0:00:18]} 13. b4 {[%emt 0:03:24]} Bf6 {[%emt 0:08:08]} 14. Bb2 {[%emt 0:00:46]} Nd7 {[%emt 0:04:09]} 15. Qd2 {[%emt 0:01:41]} cxb4 {[%emt 0:05:50]} 16. Qxb4 {[%emt 0:02:12]} Be7 {[%emt 0:03:34]} 17. Rac1 {[%emt 0:01:57]} Bb7 {[%emt 0:00:34]} 18. Rc2 {[%emt 0:02:31]} Rc8 {[%emt 0:01:58]} 19. Rfc1 {[%emt 0:00:55]} Rxc2 {[%emt 0:00:34]} 20. Rxc2 {[%emt 0:00:02]} Qb8 {[%emt 0:03:33]} 21. Qb3 {[%emt 0:06:36]} Nf6 {[%emt 0:01:05]} 22. Nc1 {[%emt 0:08:56]} Rc8 {[%emt 0:00:56]} 23. Rc6 {[%emt 0:01:11]} Bxc6 {[%emt 0:01:37]} 24. dxc6 {[%emt 0:00:05]} d5 {[%emt 0:00:24]} 25. Bxd5 {[%emt 0:03:08]} Nxd5 {[%emt 0:00:21]} 26. Qxd5 {[%emt 0:00:02]} Qc7 {[%emt 0:00:29]} 27. Qe4 {[%emt 0:03:31]} Bf6 {[%emt 0:01:54]} 28. Nd3 {[%emt 0:00:59]} Qxc6 {[%emt 0:00:35]} 29. d5 {[%emt 0:01:04]} Qe8 {[%emt 0:02:01]} 30. Qxe8+ {[%emt 0:01:43]} Rxe8 {[%emt 0:00:04]} 31. Bxf6 {[%emt 0:00:16]} gxf6 {[%emt 0:00:04]} 32. Kg2 {[%emt 0:00:28]} Re5 {[%emt 0:00:33]} 33. Nxe5 {[%emt 0:01:34]} fxe5 {[%emt 0:00:01]} 34. Kf3 {[%emt 0:00:50]} Kg7 {[%emt 0:01:12]} 35. Ke4 {[%emt 0:00:22]} Kf6 {[%emt 0:00:07]} 36. f4 {[%emt 0:02:12]} exf4 {[%emt 0:00:05]} 37. Kxf4 {[%emt 0:00:50]} b5 {[%emt 0:01:56]} 38. h4 {[%emt 0:00:59]} a5 {[%emt 0:00:55]} 39. g4 {[%emt 0:00:07]} b4 {[%emt 0:01:16]} 40. g5+ {[%emt 0:00:26]} hxg5+ {[%emt 0:00:08]} 41. hxg5+ {[%emt 0:50:25]} Ke7 {[%emt 0:50:05]} 42. axb4 {[%emt 0:00:27]} axb4 {[%emt 0:00:03]} 43. Ke5 {[%emt 0:00:24]} b3 {[%emt 0:00:25]} 44. d6+ {[%emt 0:00:19]} Ke8 {[%emt 0:01:32]} 45. Kf6 {[%emt 0:00:22]} b2 {[%emt 0:00:07]} 46. d7+ {[%emt 0:00:18]} Kxd7 {[%emt 0:00:05]} 47. Kxf7 {[%emt 0:00:13]} b1=Q {[%emt 0:00:07]} 48. g6 {[%emt 0:00:07]} Qf5+ {[%emt 0:00:17]} 49. Kg7 {[%emt 0:00:03]} Ke7 {[%emt 0:00:10]} 50. Kh8 {[%emt 0:00:20]} Qf8+ {[%emt 0:00:12]} 51. Kh7 {[%emt 0:00:12]} Kf6 {[%emt 0:00:05]} 0-1

[Event "94th Tradewise Hastings Congress"]
[Site "Hastings"]
[Date "2018.12.29"]
[Round "2"]
[White "Fryer, David W"]
[Black "Willson, Ollie"]
[Result "0-1"]
[ECO "A07"]
[WhiteElo "1932"]
[BlackElo "2081"]
[Annotator "NA"]
[PlyCount "82"]
[EventDate "2018.12.28"]
[EventType "swiss"]
[EventCountry "ENG"]
[SourceTitle "playchess.com"]
[Source "ChessBase"]
[SourceQuality "1"]
[TimeControl "40/6000+30:3000+30"]

1. Nf3 {[%emt 0:00:00]} Nf6 {[%emt 0:00:00]} 2. g3 {[%emt 0:00:00]} d5 {[%emt 0:00:44]} 3. Bg2 {[%emt 0:00:00]} Bf5 {[%emt 0:00:54]} 4. O-O {[%emt 0:00:11]} c6 {[%emt 0:02:13]} 5. d3 {[%emt 0:00:25]} Nbd7 {[%emt 0:01:25]} 6. Nbd2 {[%emt 0:03:24]} e6 {[%emt 0:05:07]} 7. c3 {[%emt 0:08:37]} Be7 {[%emt 0:01:34]} 8. h3 {[%emt 0:01:23]} e5 {[%emt 0:09:46]} 9. Re1 {[%emt 0:11:57]} O-O {[%emt 0:09:33]} 10. e4 {[%emt 0:01:56]} dxe4 {[%emt 0:00:31]} 11. dxe4 {[%emt 0:00:19]} Bg6 {[%emt 0:02:04]} 12. Qe2 {[%emt 0:06:11]} Re8 {[%emt 0:02:23]} 13. Rd1 {[%emt 0:07:55]} Qc7 {[%emt 0:01:44]} 14. Ne1 {[%emt 0:03:14]} Nc5 {[%emt 0:08:46]} 15. a4 {[%emt 0:05:43]} a5 {[%emt 0:03:05]} 16. b3 {[%emt 0:07:33]} Rad8 {[%emt 0:02:49]} 17. f3 {[%emt 0:07:31]} Nxb3 {[%emt 0:20:18]} 18. Nxb3 {[%emt 0:00:09]} Qb6+ {[%emt 0:00:04]} 19. Nd4 {[%emt 0:02:31]} exd4 {[%emt 0:01:12]} 20. cxd4 {[%emt 0:03:26]} Rxd4 {[%emt 0:01:21]} 21. Be3 {[%emt 0:06:40]} Rxd1 {[%emt 0:02:45]} 22. Bxb6 {[%emt 0:00:44]} Rxa1 {[%emt 0:00:09]} 23. Kh2 {[%emt 0:04:05]} Rxa4 {[%emt 0:05:04]} 24. Nd3 {[%emt 0:00:20]} Nd7 {[%emt 0:05:37]} 25. Be3 {[%emt 0:01:17]} b5 {[%emt 0:08:12]} 26. Qd1 {[%emt 0:03:49]} Rd8 {[%emt 0:05:14]} 27. Nb2 {[%emt 0:01:52]} Ra3 {[%emt 0:00:00]} 28. Qc1 {[%emt 0:00:40]} Bf6 {[%emt 0:01:25]} 29. Nd1 {[%emt 0:02:33]} Ra1 {[%emt 0:03:09]} 30. Qc2 {[%emt 0:00:18]} Ne5 {[%emt 0:02:03]} 31. Nf2 {[%emt 0:00:49]} Nc4 {[%emt 0:00:56]} 32. Bc1 {[%emt 0:00:23]} Bd4 {[%emt 0:01:34]} 33. Nd1 {[%emt 0:02:24]} f6 {[%emt 0:01:15]} 34. h4 {[%emt 0:03:26]} Bf7 {[%emt 0:00:31]} 35. Kh3 {[%emt 0:05:47]} a4 {[%emt 0:00:59]} 36. f4 {[%emt 0:01:36]} Be6+ {[%emt 0:00:52]} 37. f5 {[%emt 0:00:57]} Bf7 {[%emt 0:00:04]} 38. Bf4 {[%emt 0:05:52]} b4 {[%emt 0:00:30]} 39. Bf3 {[%emt 0:01:44]} b3 {[%emt 0:00:43]} 40. Qd3 {[%emt 0:01:34]} b2 {[%emt 0:01:51]} 41. Nc3 {[%emt 0:50:29]} Ra3 {[%emt 0:03:07]} 0-1

[Event "94th Tradewise Hastings Congress"]
[Site "Hastings"]
[Date "2018.12.30"]
[Round "3"]
[White "Petrov, Vladimir Sergeev"]
[Black "Eames, Robert S"]
[Result "1-0"]
[ECO "B47"]
[WhiteElo "2365"]
[BlackElo "2167"]
[Annotator "NA"]
[PlyCount "55"]
[EventDate "2018.12.28"]
[EventType "swiss"]
[EventCountry "ENG"]
[SourceTitle "playchess.com"]
[Source "ChessBase"]
[SourceQuality "1"]
[TimeControl "40/6000+30:3000+30"]

1. e4 {[%emt 0:00:00]} c5 {[%emt 0:00:27]} 2. Nf3 {[%emt 0:00:31]} e6 {[%emt 0:03:25]} 3. d4 {[%emt 0:00:08]} cxd4 {[%emt 0:00:06]} 4. Nxd4 {[%emt 0:00:06]} Nc6 {[%emt 0:00:20]} 5. Nc3 {[%emt 0:00:11]} Qc7 {[%emt 0:00:13]} 6. Be2 {[%emt 0:00:12]} Nf6 {[%emt 0:01:36]} 7. O-O {[%emt 0:00:44]} Be7 {[%emt 0:01:23]} 8. Be3 {[%emt 0:01:25]} O-O {[%emt 0:00:20]} 9. f4 {[%emt 0:00:28]} d6 {[%emt 0:00:31]} 10. Kh1 {[%emt 0:00:14]} Bd7 {[%emt 0:04:00]} 11. Qe1 {[%emt 0:00:09]} Nxd4 {[%emt 0:03:25]} 12. Bxd4 {[%emt 0:00:07]} Bc6 {[%emt 0:02:08]} 13. Qg3 {[%emt 0:00:44]} Kh8 {[%emt 0:02:41]} 14. Rae1 {[%emt 0:01:21]} Rg8 {[%emt 0:01:19]} 15. Bd3 {[%emt 0:00:53]} e5 {[%emt 0:20:02]} 16. fxe5 {[%emt 0:02:24]} Nh5 {[%emt 0:00:49]} 17. Qh3 {[%emt 0:03:49]} dxe5 {[%emt 0:00:12]} 18. Nd5 {[%emt 0:14:34]} Bxd5 {[%emt 0:04:01]} 19. exd5 {[%emt 0:00:10]} exd4 {[%emt 0:00:31]} 20. Qxh5 {[%emt 0:01:16]} g6 {[%emt 0:00:36]} 21. Rxf7 {[%emt 0:03:49]} Rg7 {[%emt 0:00:11]} 22. Bxg6 {[%emt 0:01:59]} Rxf7 {[%emt 0:01:13]} 23. Bxf7 {[%emt 0:00:39]} Bf6 {[%emt 0:00:31]} 24. Bg6 {[%emt 0:08:23]} Rg8 {[%emt 0:01:44]} 25. Be4 {[%emt 0:03:23]} Qg7 {[%emt 0:04:05]} 26. Rf1 {[%emt 0:03:30]} h6 {[%emt 0:02:11]} 27. d6 {[%emt 0:01:17]} Rf8 {[%emt 0:01:36]} 28. d7 {[%emt 0:01:08]} 1-0

[Event "94th Tradewise Hastings Congress"]
[Site "Hastings"]
[Date "2018.12.30"]
[Round "3"]
[White "Taylor, Adam C"]
[Black "Snape, Ian L"]
[Result "1-0"]
[ECO "A21"]
[WhiteElo "2331"]
[BlackElo "2112"]
[Annotator "NA"]
[PlyCount "70"]
[EventDate "2018.12.28"]
[EventType "swiss"]
[EventCountry "ENG"]
[SourceTitle "playchess.com"]
[Source "ChessBase"]
[SourceQuality "1"]
[TimeControl "40/6000+30:3000+30"]

1. c4 {[%emt 0:00:00]} e5 {[%emt 0:00:00]} 2. Nc3 {[%emt 0:00:00]} Bb4 {[%emt 0:00:00]} 3. g3 {[%emt 0:00:52]} Bxc3 {[%emt 0:00:00]} 4. bxc3 {[%emt 0:00:37]} d6 {[%emt 0:00:14]} 5. Bg2 {[%emt 0:01:05]} Ne7 {[%emt 0:00:06]} 6. Nf3 {[%emt 0:12:13]} Nbc6 {[%emt 0:01:31]} 7. O-O {[%emt 0:01:34]} O-O {[%emt 0:00:09]} 8. Ne1 {[%emt 0:00:09]} Be6 {[%emt 0:01:58]} 9. d3 {[%emt 0:00:10]} Qd7 {[%emt 0:00:58]} 10. Rb1 {[%emt 0:00:15]} Rab8 {[%emt 0:01:16]} 11. Qa4 {[%emt 0:07:31]} Bh3 {[%emt 0:01:59]} 12. f4 {[%emt 0:05:02]} Bxg2 {[%emt 0:00:59]} 13. Nxg2 {[%emt 0:00:18]} Qh3 {[%emt 0:13:53]} 14. fxe5 {[%emt 0:09:15]} dxe5 {[%emt 0:03:37]} 15. Ba3 {[%emt 0:06:47]} a6 {[%emt 0:07:54]} 16. Bxe7 {[%emt 0:06:00]} Nxe7 {[%emt 0:00:10]} 17. Qa5 {[%emt 0:00:04]} Qe6 {[%emt 0:10:49]} 18. Qxc7 {[%emt 0:01:17]} Rfc8 {[%emt 0:00:35]} 19. Qb6 {[%emt 0:00:44]} Rc6 {[%emt 0:03:07]} 20. Qa7 {[%emt 0:01:06]} Qc8 {[%emt 0:03:40]} 21. Qf2 {[%emt 0:01:32]} Rf6 {[%emt 0:01:01]} 22. Qe3 {[%emt 0:00:05]} Rxf1+ {[%emt 0:03:39]} 23. Rxf1 {[%emt 0:00:36]} Qe6 {[%emt 0:01:34]} 24. Rb1 {[%emt 0:02:52]} Nc6 {[%emt 0:00:50]} 25. Qe4 {[%emt 0:02:11]} g6 {[%emt 0:02:12]} 26. Ne3 {[%emt 0:01:28]} h5 {[%emt 0:01:25]} 27. Rb6 {[%emt 0:08:51]} Kg7 {[%emt 0:01:35]} 28. Nd5 {[%emt 0:04:55]} h4 {[%emt 0:06:42]} 29. Nb4 {[%emt 0:04:35]} Re8 {[%emt 0:10:24]} 30. Nxc6 {[%emt 0:00:37]} hxg3 {[%emt 0:02:46]} 31. hxg3 {[%emt 0:02:51]} bxc6 32. Qxc6 {[%emt 0:04:57]} Qh3 {[%emt 0:02:00]} 33. Qf6+ {[%emt 0:02:16]} Kg8 {[%emt 0:00:16]} 34. Qf2 {[%emt 0:04:39]} Qh6 {[%emt 0:02:55]} 35. Kg2 {[%emt 0:03:35]} e4 {[%emt 0:06:39]} 1-0

[Event "94th Tradewise Hastings Congress"]
[Site "Hastings"]
[Date "2018.12.30"]
[Round "3"]
[White "Kalavannan, Koby"]
[Black "Petrov, Martin"]
[Result "0-1"]
[ECO "A05"]
[WhiteElo "2328"]
[BlackElo "2472"]
[Annotator "ChessBase"]
[PlyCount "176"]
[EventDate "2018.12.28"]
[EventType "swiss"]
[EventCountry "ENG"]
[SourceTitle "playchess.com"]
[Source "ChessBase"]
[SourceQuality "1"]
[TimeControl "40/6000+30:3000+30"]

1. Nf3 {[%emt 0:00:00]} Nf6 {[%emt 0:00:49]} 2. g3 {[%emt 0:00:00]} c5 {[%emt 0:02:33]} 3. c4 {[%emt 0:01:46]} Nc6 {[%emt 0:00:46]} 4. Bg2 {[%emt 0:00:38]} d5 {[%emt 0:00:15]} 5. cxd5 {[%emt 0:00:50]} Nxd5 {[%emt 0:00:05]} 6. O-O {[%emt 0:02:15]} e5 {[%emt 0:00:08]} 7. Nc3 {[%emt 0:00:20]} Nc7 {[%emt 0:00:13]} 8. d3 {[%emt 0:01:08]} Be7 {[%emt 0:00:08]} 9. Be3 {[%emt 0:12:28]} O-O {[%emt 0:07:35]} 10. Nd2 {[%emt 0:16:06]} Bd7 {[%emt 0:03:52]} 11. Nc4 {[%emt 0:06:48]} f6 {[%emt 0:01:06]} 12. a4 {[%emt 0:00:57]} Kh8 {[%emt 0:12:10]} 13. Qb3 {[%emt 0:08:29]} Rb8 {[%emt 0:10:36]} 14. Rfc1 {[%emt 0:01:51]} Ne6 {[%emt 0:02:05]} 15. Qd1 {[%emt 0:07:53]} Ned4 {[%emt 0:04:56]} 16. Nb5 {[%emt 0:08:29]} Bg4 {[%emt 0:17:05]} 17. f3 {[%emt 0:02:01]} Be6 {[%emt 0:01:50]} 18. Bf2 {[%emt 0:03:58]} Re8 {[%emt 0:11:52]} 19. Rc3 {[%emt 0:09:31]} a6 {[%emt 0:01:11]} 20. Nxd4 {[%emt 0:00:04]} exd4 {[%emt 0:00:11]} 21. Rcc1 {[%emt 0:00:49]} Bf8 {[%emt 0:02:45]} 22. Qd2 Bd5 {[%emt 0:04:05]} 23. a5 {[%emt 0:02:34]} Qe7 {[%emt 0:03:01]} 24. Nb6 {[%emt 0:01:23]} Bf7 {[%emt 0:00:51]} 25. Kf1 {[%emt 0:02:55]} Rbd8 {[%emt 0:04:14]} 26. Na4 {[%emt 0:01:58]} c4 {[%emt 0:01:39]} 27. dxc4 {[%emt 0:00:15]} Qb4 {[%emt 0:00:05]} 28. Qxb4 {[%emt 0:05:31]} Bxb4 {[%emt 0:00:05]} 29. b3 {[%emt 0:00:56]} Nxa5 {[%emt 0:00:20]} 30. Nc5 {[%emt 0:00:38]} Nxc4 {[%emt 0:08:05]} 31. bxc4 {[%emt 0:01:57]} Bxc5 {[%emt 0:00:04]} 32. f4 {[%emt 0:00:12]} Re7 {[%emt 0:01:06]} 33. Bd5 {[%emt 0:06:43]} Bxd5 {[%emt 0:03:00]} 34. cxd5 {[%emt 0:00:01]} Rxd5 {[%emt 0:00:07]} 35. Ra5 {[%emt 0:00:30]} b6 {[%emt 0:00:53]} 36. Rxa6 h6 {[%emt 0:01:07]} 37. Ra2 {[%emt 0:03:02]} Kh7 {[%emt 0:01:20]} 38. Rd1 {[%emt 0:00:18]} f5 {[%emt 0:02:28]} 39. Rad2 {[%emt 0:01:11]} Re4 {[%emt 0:00:32]} 40. Kg2 {[%emt 0:01:41]} Rd6 {[%emt 0:02:54]} 41. h4 {[%emt 0:08:27]} h5 {[%emt 0:04:48]} 42. Kf3 {[%emt 0:05:02]} Rde6 {[%emt 0:00:43]} 43. Rb1 {[%emt 0:01:22]} Kg6 {[%emt 0:01:27]} 44. Rb3 {[%emt 0:01:13]} Kf7 {[%emt 0:02:22]} 45. Rbb2 {[%emt 0:16:06]} Re7 {[%emt 0:02:48]} 46. Ra2 {[%emt 0:03:02]} Ke6 {[%emt 0:02:44]} 47. Rd3 {[%emt 0:02:13]} Kf7 {[%emt 0:03:07]} 48. Rb3 {[%emt 0:01:28]} g6 {[%emt 0:01:53]} 49. Rd3 {[%emt 0:00:41]} Ke6 {[%emt 0:03:05]} 50. Rad2 {[%emt 0:02:52]} Rd7 {[%emt 0:00:20]} 51. Rd1 {[%emt 0:01:45]} Rd6 {[%emt 0:01:13]} 52. Rb1 {[%emt 0:03:47]} Kd7 {[%emt 0:00:50]} 53. Rdb3 {[%emt 0:00:22]} Kc6 {[%emt 0:00:33]} 54. R1b2 {[%emt 0:00:24]} Rde6 {[%emt 0:01:01]} 55. Bg1 {[%emt 0:00:13]} Re7 {[%emt 0:00:57]} 56. Ra2 {[%emt 0:04:19]} Re8 {[%emt 0:02:52]} 57. Bf2 {[%emt 0:00:21]} Kd5 {[%emt 0:00:23]} 58. Rd3 {[%emt 0:00:38]} Rd8 {[%emt 0:02:04]} 59. Rad2 {[%emt 0:00:36]} Kc6 {[%emt 0:02:24]} 60. Ra2 {[%emt 0:01:03]} Rd7 {[%emt 0:01:46]} 61. Rb3 {[%emt 0:01:07]} Rde7 {[%emt 0:00:28]} 62. Bg1 {[%emt 0:00:44]} Kb7 {[%emt 0:01:37]} 63. Bf2 {[%emt 0:00:32]} Re8 {[%emt 0:00:58]} 64. Rc2 {[%emt 0:00:28]} Kc6 {[%emt 0:00:05]} 65. Ra2 {[%emt 0:00:44]} Kd5 {[%emt 0:01:50]} 66. Rd3 {[%emt 0:00:12]} b5 {[%emt 0:03:12]} 67. Rad2 {[%emt 0:01:07]} Ra8 {[%emt 0:01:31]} 68. e3 {[%emt 0:01:12]} Ra3 {[%emt 0:00:14]} 69. Rxa3 {[%emt 0:01:02]} Bxa3 {[%emt 0:00:05]} 70. exd4 {[%emt 0:00:02]} b4 {[%emt 0:00:28]} 71. Ra2 {[%emt 0:01:55]} Re7 {[%emt 0:01:19]} 72. Be3 {[%emt 0:00:16]} Rb7 {[%emt 0:00:10]} 73. Ke2 {[%emt 0:00:43]} b3 {[%emt 0:00:07]} 74. Ra1 {[%emt 0:00:06]} b2 {[%emt 0:00:06]} 75. Rb1 {[%emt 0:00:00]} Kc4 {[%emt 0:00:08]} 76. d5 {[%emt 0:00:51]} Kb3 {[%emt 0:00:25]} 77. Bd4 {[%emt 0:01:03]} Ka2 {[%emt 0:02:25]} 78. Bxb2 {[%emt 0:00:13]} Rxb2+ {[%emt 0:00:04]} 79. Rxb2+ {[%emt 0:00:03]} Kxb2 {[%emt 0:00:05]} 80. Kd3 {[%emt 0:00:18]} Kb3 {[%emt 0:00:06]} 81. d6 {[%emt 0:00:35]} Bxd6 {[%emt 0:00:04]} 82. Kd4 {[%emt 0:00:01]} Kc2 {[%emt 0:00:20]} 83. Kd5 {[%emt 0:00:13]} Bxf4 {[%emt 0:00:10]} 84. gxf4 {[%emt 0:00:01]} Kd3 {[%emt 0:00:06]} 85. Ke5 {[%emt 0:00:21]} Ke3 {[%emt 0:00:03]} 86. Kf6 {[%emt 0:00:04]} Kxf4 {[%emt 0:00:05]} 87. Kxg6 {[%emt 0:00:03]} Kg4 {[%emt 0:00:06]} 88. Kf6 {[%emt 0:00:02]} f4 {[%emt 0:00:05]} 0-1

[Event "94th Tradewise Hastings Congress"]
[Site "Hastings"]
[Date "2018.12.30"]
[Round "3"]
[White "Derakhshani, Borna"]
[Black "Lalic, Bogdan"]
[Result "1/2-1/2"]
[ECO "D02"]
[WhiteElo "2325"]
[BlackElo "2420"]
[Annotator "NA"]
[PlyCount "40"]
[EventDate "2018.12.28"]
[EventType "swiss"]
[EventCountry "ENG"]
[SourceTitle "playchess.com"]
[Source "ChessBase"]
[SourceQuality "1"]
[TimeControl "40/6000+30:3000+30"]

1. d4 {[%emt 0:06:57]} Nf6 {[%emt 0:00:00]} 2. Bf4 {[%emt 0:00:21]} d5 {[%emt 0:00:00]} 3. Nf3 {[%emt 0:00:17]} c5 {[%emt 0:00:19]} 4. e3 {[%emt 0:01:52]} Nc6 {[%emt 0:00:21]} 5. c3 {[%emt 0:02:47]} Qb6 {[%emt 0:00:25]} 6. Qb3 {[%emt 0:00:19]} c4 {[%emt 0:00:19]} 7. Qc2 {[%emt 0:00:08]} Bf5 {[%emt 0:00:25]} 8. Qc1 {[%emt 0:00:04]} e6 {[%emt 0:00:33]} 9. h3 {[%emt 0:02:51]} Be7 {[%emt 0:00:49]} 10. Nbd2 {[%emt 0:01:06]} Qd8 {[%emt 0:01:09]} 11. Be2 {[%emt 0:03:13]} h6 {[%emt 0:00:21]} 12. Bd1 {[%emt 0:00:58]} b5 {[%emt 0:01:57]} 13. Bc2 {[%emt 0:01:07]} Bxc2 {[%emt 0:01:03]} 14. Qxc2 {[%emt 0:00:05]} Rc8 {[%emt 0:07:26]} 15. O-O {[%emt 0:04:34]} O-O {[%emt 0:00:07]} 16. Rfe1 {[%emt 0:02:47]} Bd6 {[%emt 0:05:07]} 17. Bxd6 {[%emt 0:04:36]} Qxd6 {[%emt 0:00:07]} 18. e4 {[%emt 0:00:25]} Nxe4 {[%emt 0:00:28]} 19. Nxe4 {[%emt 0:00:21]} dxe4 {[%emt 0:00:05]} 20. Qxe4 {[%emt 0:06:05]} b4 {[%emt 0:00:55]} 1/2-1/2

[Event "94th Tradewise Hastings Congress"]
[Site "Hastings"]
[Date "2018.12.30"]
[Round "3"]
[White "Peek, Marcel"]
[Black "Comellas Blanchart, Jordi"]
[Result "1-0"]
[ECO "D63"]
[WhiteElo "2293"]
[BlackElo "2055"]
[Annotator "NA"]
[PlyCount "48"]
[EventDate "2018.12.28"]
[EventType "swiss"]
[EventCountry "ENG"]
[SourceTitle "playchess.com"]
[Source "ChessBase"]
[SourceQuality "1"]
[TimeControl "40/6000+30:3000+30"]

1. d4 {[%emt 0:00:00]} d5 {[%emt 0:00:00]} 2. c4 {[%emt 0:00:00]} e6 {[%emt 0:00:00]} 3. Nf3 {[%emt 0:00:00]} Nf6 {[%emt 0:00:00]} 4. Nc3 {[%emt 0:00:03]} Be7 {[%emt 0:00:13]} 5. Bg5 {[%emt 0:00:32]} Nbd7 {[%emt 0:00:18]} 6. e3 {[%emt 0:00:12]} h6 {[%emt 0:00:18]} 7. Bh4 {[%emt 0:00:21]} O-O {[%emt 0:00:12]} 8. Rc1 {[%emt 0:02:44]} c5 {[%emt 0:00:17]} 9. cxd5 {[%emt 0:07:15]} Nxd5 {[%emt 0:00:30]} 10. Bxe7 {[%emt 0:00:27]} Nxe7 {[%emt 0:00:21]} 11. Bb5 {[%emt 0:03:13]} cxd4 {[%emt 0:04:34]} 12. Qxd4 {[%emt 0:08:18]} Nf6 {[%emt 0:17:34]} 13. Qa4 {[%emt 0:14:42]} a6 {[%emt 0:05:30]} 14. O-O {[%emt 0:05:11]} Rb8 {[%emt 0:04:40]} 15. Qf4 {[%emt 0:09:54]} Bd7 {[%emt 0:07:52]} 16. Bxd7 {[%emt 0:00:44]} Qxd7 {[%emt 0:01:34]} 17. Ne5 {[%emt 0:15:18]} Qe8 {[%emt 0:03:53]} 18. e4 {[%emt 0:00:21]} Nc6 {[%emt 0:03:58]} 19. Nxc6 {[%emt 0:08:28]} Qxc6 {[%emt 0:03:44]} 20. Rfd1 {[%emt 0:00:32]} Rbd8 {[%emt 0:05:08]} 21. Qe3 {[%emt 0:05:31]} Rxd1+ {[%emt 0:18:31]} 22. Rxd1 {[%emt 0:00:14]} Rc8 {[%emt 0:02:08]} 23. h3 {[%emt 0:07:19]} Nd7 {[%emt 0:05:50]} 24. e5 {[%emt 0:02:07]} Nf8 {[%emt 0:11:30]} 1-0